[Event "FIDE WCCC Open-12 2024"]
[Site "Montesilvano"]
[Date "2024.11.26"]
[Round "11.14"]
[White "Ritzerveld, Noah"]
[Black "Nguyen, Anh Khoi"]
[Result "0-1"]
[ECO "C11"]
[WhiteElo "2285"]
[BlackElo "2520"]
[Annotator "TA"]
[PlyCount "86"]
[EventDate "2024.11.18"]
[EventType "swiss"]
[EventCountry "ITA"]
[SourceTitle "playchess.com"]
[Source "ChessBase"]
[SourceQuality "1"]
[TimeControl "5400+30"]

{[%evp 20,86,0,0,0,0,12,31,9,8,16,12,33,20,45,42,62,0,0,0,7,0,0,0,0,0,0,0,0,0,0,0,0,0,0,0,0,0,0,0,0,0,0,0,4,4,28,23,26,0,0,0,0,0,0,0,0,0,0,-29967,-29968,-5457,-5408,-29985,-29986,-29986,-29985,-29991,-29992]} 1. e4 {[%emt 0:00:02]} e6 {[%emt 0:00:09]} 2. d4 {[%emt 0:00:04]} d5 {[%emt 0:00:05]} 3. Nc3 {[%emt 0:00:04]} Nf6 {[%emt 0:00:07]} 4. e5 {[%emt 0:00:29]} Nfd7 {[%emt 0:00:08]} 5. f4 {[%emt 0:00:09]} c5 {[%emt 0:00:04]} 6. Nf3 {[%emt 0:00:05]} Nc6 {[%emt 0:00:05]} 7. Be3 {[%emt 0:00:05]} cxd4 {[%emt 0:00:06]} 8. Nxd4 {[%emt 0:00:14]} Qb6 {[%emt 0:00:05]} 9. Qd2 {[%emt 0:00:45]} Qxb2 {[%emt 0:00:06]} 10. Rb1 {[%emt 0:00:21]} Qa3 {[%emt 0:00:07]} 11. Bb5 {[%emt 0:00:46]} Nxd4 {[%emt 0:00:06]} 12. Bxd4 {[%emt 0:00:33]} a6 {[%emt 0:00:04]} 13. Bxd7+ {[%emt 0:00:35]} Bxd7 {[%emt 0:00:09] White is slightly better.} 14. Rb3 {[%emt 0:00:24]} Qe7 {[%emt 0:00:06]} (14... Qa5 $2 15. Bb6 $18 (15. Rxb7 Bb4 $17) (15. Rxb7 Bb4 $17)) 15. Rxb7 {[%emt 0:00:14]} Qd8 {[%emt 0:00:05]} 16. O-O {[%emt 0:03:46]} Qc8 {[%emt 0:00:41]} 17. Rfb1 {[%emt 0:08:36][%cal Of4f5]} Bc5 {[%emt 0:00:42]} 18. Bxc5 {[%emt 0:03:41]} (18. f5 $1 $14) 18... Qxc5+ $11 {[%emt 0:00:09]} 19. Kh1 {[%emt 0:00:22][%cal Oc3e4] Black must now prevent Ne4!} Bc8 {[%emt 0:22:00]} 20. R7b3 {[%emt 0:13:28] Hoping for Na4.} O-O {[%emt 0:00:53]} 21. Ne2 {[%emt 0:01:21]} Bd7 {[%emt 0:04:41]} 22. Nd4 {[%emt 0:03:39]} Rfc8 {[%emt 0:03:32]} 23. h3 {[%emt 0:02:20]} h6 {[%emt 0:08:16]} 24. Rg3 {[%emt 0:09:15][%cal Of4f5] f5! would now be deadly.} Kh8 {[%emt 0:03:33]} 25. Rb7 {[%emt 0:03:28]} Rc7 {[%emt 0:03:38]} 26. Rxc7 {[%emt 0:10:03]} Qxc7 {[%emt 0:00:02]} 27. Rc3 {[%emt 0:01:46]} Qd8 {[%emt 0:06:21]} 28. Rb3 {[%emt 0:02:18]} Rb8 {[%emt 0:05:06]} 29. Kh2 {[%emt 0:01:38]} Qc7 {[%emt 0:01:51]} 30. Rxb8+ {[%emt 0:03:01]} Qxb8 {[%emt 0:00:01][%mdl 4096] Endgame. KQB-KQN} 31. Qa5 {[%emt 0:00:51]} Bb5 {[%emt 0:00:33]} 32. a4 {[%emt 0:01:30]} Bc4 {[%emt 0:01:27]} 33. Nc6 {[%emt 0:01:01]} Qc8 {[%emt 0:04:59]} 34. Qc5 {[%emt 0:02:07]} Kh7 {[%emt 0:02:20]} 35. Qd6 {[%emt 0:01:08]} Be2 {[%emt 0:04:59]} 36. c3 {[%emt 0:04:35]} Bd1 {[%emt 0:02:20]} 37. a5 {[%emt 0:00:56]} Ba4 {[%emt 0:00:50]} 38. Ne7 {[%emt 0:06:42]} Qc4 {[%emt 0:01:04]} ({Inferior is} 38... Qxc3 39. Qb8 (39. Qxa6 Qd4 $11) (39. Qxa6 Qb4 $11)) 39. Qb4 $2 {[%emt 0:12:25][%mdl 8192] [#]} (39. Qb8 $11 Qxf4+ 40. Kg1 Qe3+ 41. Kh1 Qe1+ (41... Qxc3 42. Qg8#) (41... Qc1+ 42. Kh2 $11) 42. Kh2) 39... Qxb4 $1 {[%emt 0:00:15]} 40. cxb4 {[%emt 0:00:10] [#]} d4 $1 {[%emt 0:00:13] ( -> ...d3)} 41. b5 {[%emt 0:01:32]} Bxb5 {[%emt 0:02:20] Black mates.} 42. Kg3 {[%emt 0:01:34]} d3 {[%emt 0:00:10]} 43. Kf2 {[%emt 0:01:03]} d2 {[%emt 0:00:05] Weighted Error Value: White=0.37/Black=0.03 (flawless) .  Loses game:     	White=1     	---        Mistake:       	White=1     	---        Inaccurate:     	White=1     	---        OK:         	White=14    	Black=9      Best:        	White=2     	Black=1      Strong:       	---       	Black=1} 0-1

[Event "FIDE WCCC Open-12 2024"]
[Site "Montesilvano"]
[Date "2024.11.26"]
[Round "11.28"]
[White "Bocquenet-Drouode, Hugo"]
[Black "Mai, Duc Kien"]
[Result "1/2-1/2"]
[ECO "D00"]
[WhiteElo "2002"]
[BlackElo "1771"]
[Annotator "RC"]
[PlyCount "141"]
[EventDate "2024.11.18"]
[EventType "swiss"]
[EventCountry "ITA"]
[SourceTitle "playchess.com"]
[Source "ChessBase"]
[SourceQuality "1"]
[TimeControl "5400+30"]

1. d4 {[%emt 0:00:03]} Nf6 {[%emt 0:00:17]} 2. Nc3 {[%emt 0:00:14]} d5 {[%emt 0:00:10]} 3. Bf4 {[%emt 0:00:06]} e6 {[%emt 0:03:15]} 4. Nb5 {[%emt 0:00:09]} Na6 {[%emt 0:00:05]} 5. e3 {[%emt 0:00:12]} c6 {[%emt 0:00:21]} 6. Nc3 {[%emt 0:00:08]} Bd6 {[%emt 0:01:06]} 7. Bxd6 {[%emt 0:00:37]} Qxd6 {[%emt 0:00:07]} 8. Bxa6 {[%emt 0:00:03]} bxa6 {[%emt 0:00:03]} 9. Na4 {[%emt 0:00:46]} e5 {[%emt 0:01:34]} 10. dxe5 {[%emt 0:01:02]} Qxe5 {[%emt 0:00:06]} 11. Nf3 {[%emt 0:00:39]} Qd6 {[%emt 0:00:22]} 12. Qd4 {[%emt 0:02:18]} O-O {[%emt 0:03:37]} 13. O-O {[%emt 0:01:21]} Bg4 {[%emt 0:04:27]} 14. Ne5 {[%emt 0:03:12]} Bf5 {[%emt 0:02:41]} 15. Rac1 {[%emt 0:14:27]} Rfe8 {[%emt 0:10:41]} 16. Nd3 {[%emt 0:19:52]} Nd7 {[%emt 0:11:52]} 17. Nac5 {[%emt 0:05:07]} Rac8 {[%emt 0:11:44]} 18. Nxd7 {[%emt 0:03:12]} Bxd7 {[%emt 0:03:07]} 19. b4 {[%emt 0:07:29]} a5 {[%emt 0:01:27]} 20. a3 {[%emt 0:04:02]} axb4 {[%emt 0:06:08]} 21. axb4 {[%emt 0:01:00]} Rc7 {[%emt 0:01:16]} 22. Nc5 {[%emt 0:04:34]} Qe5 {[%emt 0:06:05]} 23. Rfd1 {[%emt 0:03:46]} Qxd4 {[%emt 0:04:56]} 24. Rxd4 {[%emt 0:01:27]} Be6 {[%emt 0:00:05]} 25. Ra1 {[%emt 0:00:30]} Kf8 {[%emt 0:01:32]} 26. Ra5 {[%emt 0:01:14]} Ke7 {[%emt 0:02:22]} 27. Rd1 {[%emt 0:01:40]} h6 {[%emt 0:03:34]} 28. Rda1 {[%emt 0:25:20]} Ra8 {[%emt 0:00:08]} 29. c3 {[%emt 0:00:00]} Kd6 {[%emt 0:00:20]} 30. Nb3 {[%emt 0:00:00]} Bd7 {[%emt 0:05:11]} 31. Rc5 {[%emt 0:00:00]} g6 {[%emt 0:01:38]} 32. Nd4 {[%emt 0:00:00]} Rb8 {[%emt 0:02:11]} 33. Kf1 {[%emt 0:00:00]} Rbb7 {[%emt 0:01:09]} 34. Nb3 {[%emt 0:00:00]} Rb5 {[%emt 0:00:50]} 35. h3 {[%emt 0:00:00]} Rxc5 {[%emt 0:00:12]} 36. Nxc5 {[%emt 0:00:00]} h5 {[%emt 0:00:22]} 37. Ke2 {[%emt 0:00:00]} Bf5 {[%emt 0:00:29]} 38. Ra5 {[%emt 0:00:00]} Re7 {[%emt 0:00:44]} 39. Nb3 {[%emt 0:00:00]} Rc7 {[%emt 0:00:55]} 40. Nd4 {[%emt 0:00:00]} Bd7 {[%emt 0:00:36]} 41. Ra6 {[%emt 0:00:00]} Ke7 {[%emt 0:02:35]} 42. Nb3 {[%emt 0:00:00]} c5 {[%emt 0:01:46]} 43. Ra5 {[%emt 0:00:00]} cxb4 {[%emt 0:00:31]} 44. cxb4 {[%emt 0:00:00]} Kd6 {[%emt 0:02:41]} 45. Nd4 {[%emt 0:01:35]} Rb7 {[%emt 0:00:53]} 46. Ra6+ {[%emt 0:00:20]} Ke7 {[%emt 0:00:39]} 47. Kf3 {[%emt 0:00:45]} Rxb4 {[%emt 0:00:39]} 48. Rxa7 {[%emt 0:00:05]} Kd6 {[%emt 0:00:15]} 49. Ra6+ {[%emt 0:00:15]} Ke7 {[%emt 0:00:19]} 50. g4 {[%emt 0:00:54]} hxg4+ {[%emt 0:00:18]} 51. hxg4 {[%emt 0:00:06]} g5 {[%emt 0:01:20]} 52. Rh6 {[%emt 0:02:32]} Rb1 {[%emt 0:00:46]} 53. Rh5 {[%emt 0:00:44]} Kf6 {[%emt 0:00:10]} 54. Rh6+ {[%emt 0:01:40]} Ke7 {[%emt 0:00:07]} 55. Ne2 {[%emt 0:00:11]} Rb4 {[%emt 0:00:19]} 56. Nd4 {[%emt 0:00:28]} Rb1 {[%emt 0:00:06]} 57. Nc6+ {[%emt 0:01:32]} Bxc6 {[%emt 0:00:27]} 58. Rxc6 {[%emt 0:00:06]} Rb3 {[%emt 0:00:30]} 59. Ra6 {[%emt 0:00:24]} d4 {[%emt 0:00:49]} 60. Ra5 {[%emt 0:00:17]} dxe3 {[%emt 0:00:10]} 61. fxe3 {[%emt 0:00:29]} Kf6 {[%emt 0:00:12]} 62. Rf5+ {[%emt 0:00:16]} Kg6 {[%emt 0:00:11]} 63. Rd5 {[%emt 0:00:18]} Rb4 {[%emt 0:00:29]} 64. Rd4 {[%emt 0:00:38]} Rxd4 {[%emt 0:00:54]} 65. exd4 {[%emt 0:00:06]} f5 {[%emt 0:00:02]} 66. gxf5+ {[%emt 0:00:41]} Kxf5 {[%emt 0:00:07]} 67. Ke3 {[%emt 0:00:14]} g4 {[%emt 0:00:06]} 68. d5 {[%emt 0:00:15]} Ke5 {[%emt 0:00:02]} 69. d6 {[%emt 0:00:05]} Kxd6 {[%emt 0:00:04]} 70. Kf4 {[%emt 0:00:03]} Ke6 {[%emt 0:00:05]} 71. Kxg4 {[%emt 0:00:09]} 1/2-1/2

[Event "FIDE WCCC Open-12 2024"]
[Site "Montesilvano"]
[Date "2024.11.26"]
[Round "11.58"]
[White "Isakov, Amin"]
[Black "Mamarasulov, Husan"]
[Result "1-0"]
[ECO "D34"]
[WhiteElo "1698"]
[BlackElo "1407"]
[Annotator "NA RC"]
[PlyCount "63"]
[EventDate "2024.11.18"]
[EventType "swiss"]
[EventCountry "ITA"]
[SourceTitle "playchess.com"]
[Source "ChessBase"]
[SourceQuality "1"]
[TimeControl "5400+30"]

1. c4 {[%emt 0:00:22]} c5 {[%emt 0:00:05]} 2. Nc3 {[%emt 0:00:13]} Nc6 {[%emt 0:00:05]} 3. g3 {[%emt 0:00:20]} Nf6 {[%emt 0:00:29]} 4. Bg2 {[%emt 0:00:07]} e6 {[%emt 0:00:05]} 5. Nf3 {[%emt 0:00:20]} Be7 {[%emt 0:00:14]} 6. O-O {[%emt 0:00:11]} O-O {[%emt 0:00:11]} 7. d4 {[%emt 0:00:23]} d5 {[%emt 0:01:59]} 8. cxd5 {[%emt 0:00:51]} exd5 {[%emt 0:00:18]} 9. Na4 {[%emt 0:17:48]} c4 {[%emt 0:04:21]} 10. Nc3 {[%emt 0:00:25]} a6 {[%emt 0:02:10]} 11. Ne5 {[%emt 0:01:45]} Qc7 {[%emt 0:15:04]} 12. Nxc6 {[%emt 0:11:54]} bxc6 {[%emt 0:03:20]} 13. Qc2 {[%emt 0:00:57]} Bb7 {[%emt 0:14:06]} 14. e4 {[%emt 0:02:36]} c5 {[%emt 0:03:32]} 15. e5 {[%emt 0:01:32]} Nd7 {[%emt 0:00:29]} 16. Nxd5 {[%emt 0:00:16]} Bxd5 {[%emt 0:00:33]} 17. Bxd5 {[%emt 0:00:09]} Rab8 {[%emt 0:00:48]} 18. e6 {[%emt 0:01:02]} Nb6 {[%emt 0:01:11]} 19. exf7+ {[%emt 0:02:01]} Kh8 {[%emt 0:00:31]} 20. Bf4 {[%emt 0:08:20]} Bd6 {[%emt 0:01:57]} 21. dxc5 {[%emt 0:01:25]} Qxc5 {[%emt 0:00:17]} 22. Bxd6 {[%emt 0:00:26]} Qxd6 {[%emt 0:00:20]} 23. Be4 {[%emt 0:00:19]} Qh6 {[%emt 0:01:15]} 24. Rad1 {[%emt 0:01:26]} Rxf7 {[%emt 0:09:13]} 25. Rd4 {[%emt 0:00:20]} Rff8 {[%emt 0:03:53]} 26. Bxh7 {[%emt 0:03:24]} g5 {[%emt 0:10:05]} 27. Be4 {[%emt 0:01:16]} Qh3 {[%emt 0:02:43]} 28. Rd6 {[%emt 0:01:12]} Rfd8 {[%emt 0:08:27]} 29. Qc3+ {[%emt 0:00:31]} Kg8 {[%emt 0:00:11]} 30. Rg6+ {[%emt 0:00:11]} Kf8 {[%emt 0:00:57]} 31. Qf6+ {[%emt 0:00:31]} Ke8 {[%emt 0:00:17]} 32. Bc6+ {[%emt 0:00:14]} 1-0

[Event "FIDE WCCC Open-12 2024"]
[Site "Montesilvano"]
[Date "2024.11.26"]
[Round "11.64"]
[White "Sharafutdinov, Timur"]
[Black "Son, Juwon"]
[Result "1-0"]
[ECO "B50"]
[WhiteElo "1925"]
[BlackElo "1448"]
[Annotator "NA RC"]
[PlyCount "99"]
[EventDate "2024.11.18"]
[EventType "swiss"]
[EventCountry "ITA"]
[SourceTitle "playchess.com"]
[Source "ChessBase"]
[SourceQuality "1"]
[TimeControl "5400+30"]

1. e4 {[%emt 0:00:03]} c5 {[%emt 0:00:09]} 2. Nf3 {[%emt 0:00:27]} d6 {[%emt 0:00:04]} 3. Nc3 {[%emt 0:00:38]} Nf6 {[%emt 0:00:15]} 4. Bc4 {[%emt 0:00:53]} Nc6 {[%emt 0:00:40]} 5. d3 {[%emt 0:00:56]} g6 {[%emt 0:02:02]} 6. Bf4 {[%emt 0:05:25]} Bg7 {[%emt 0:04:07]} 7. Qd2 {[%emt 0:04:42]} O-O {[%emt 0:13:56]} 8. h3 {[%emt 0:02:01]} Qb6 {[%emt 0:09:31]} 9. Rb1 {[%emt 0:05:18]} h5 {[%emt 0:14:00]} 10. Nh4 {[%emt 0:03:28]} Nh7 {[%emt 0:08:59]} 11. Nxg6 {[%emt 0:02:01]} Re8 {[%emt 0:13:35]} 12. Bh6 {[%emt 0:06:05]} Bxc3 {[%emt 0:05:07]} 13. Qxc3 {[%emt 0:00:25]} Qb4 {[%emt 0:24:35]} 14. Nf4 {[%emt 0:03:09]} Qxc3+ {[%emt 0:00:00]} 15. bxc3 {[%emt 0:00:04]} Ne5 {[%emt 0:00:00]} 16. Bb5 {[%emt 0:01:11]} Rd8 {[%emt 0:00:00]} 17. Nxh5 {[%emt 0:01:40]} a6 {[%emt 0:00:00]} 18. Ba4 {[%emt 0:00:11]} b5 {[%emt 0:00:00]} 19. Bb3 {[%emt 0:00:31]} Bd7 {[%emt 0:00:00]} 20. a3 {[%emt 0:02:04]} Bc6 {[%emt 0:00:00]} 21. f4 {[%emt 0:02:11]} Ng6 {[%emt 0:00:00]} 22. Rf1 {[%emt 0:02:21]} c4 {[%emt 0:00:00]} 23. Ba2 {[%emt 0:02:44]} d5 {[%emt 0:00:00]} 24. f5 {[%emt 0:05:47]} Ne5 {[%emt 0:00:00]} 25. d4 {[%emt 0:00:57]} Nd7 {[%emt 0:00:00]} 26. e5 {[%emt 0:00:25]} Nb6 {[%emt 0:00:00]} 27. Rf3 {[%emt 0:00:38]} Nf8 {[%emt 0:00:00]} 28. f6 {[%emt 0:01:03]} e6 {[%emt 0:00:34]} 29. Rg3+ {[%emt 0:01:01]} Kh7 {[%emt 0:01:06]} 30. Bf4 {[%emt 0:01:05]} Ng6 {[%emt 0:00:34]} 31. Bd2 {[%emt 0:03:55]} Rg8 {[%emt 0:01:08]} 32. Ng7 {[%emt 0:00:36]} Rh8 {[%emt 0:01:09]} 33. Kf2 {[%emt 0:02:59]} Kg8 {[%emt 0:00:41]} 34. Rh1 {[%emt 0:00:23]} Kf8 {[%emt 0:02:47]} 35. Rg4 {[%emt 0:01:26]} Rh7 {[%emt 0:02:09]} 36. h4 {[%emt 0:00:44]} a5 {[%emt 0:01:22]} 37. g3 {[%emt 0:01:04]} a4 {[%emt 0:00:00]} 38. Rg5 {[%emt 0:00:34]} Nd7 {[%emt 0:00:08]} 39. h5 {[%emt 0:01:01]} Nh8 {[%emt 0:00:29]} 40. Rh4 {[%emt 0:00:41]} Bb7 {[%emt 0:00:28]} 41. Rhg4 {[%emt 0:00:30]} Bc6 {[%emt 0:01:25]} 42. h6 {[%emt 0:01:25]} Ng6 {[%emt 0:00:00]} 43. Nxe6+ {[%emt 0:01:37]} Kg8 {[%emt 0:00:23]} 44. Nf4 {[%emt 0:00:57]} Rxh6 {[%emt 0:01:07]} 45. Nxg6 {[%emt 0:00:24]} Rxg6 {[%emt 0:00:00]} 46. Rxg6+ {[%emt 0:00:08]} fxg6 {[%emt 0:00:00]} 47. Rxg6+ {[%emt 0:01:07]} Kf7 {[%emt 0:00:00]} 48. Rg7+ {[%emt 0:00:07]} Ke6 {[%emt 0:00:08]} 49. g4 {[%emt 0:00:55]} Rh8 {[%emt 0:00:24]} 50. Re7# {[%emt 0:00:15]} 1-0

[Event "FIDE WCCC Open-12 2024"]
[Site "Montesilvano"]
[Date "2024.11.26"]
[Round "11.66"]
[White "Wang, Luis"]
[Black "Stefanov, Stefan"]
[Result "0-1"]
[ECO "B17"]
[WhiteElo "1751"]
[BlackElo "1478"]
[Annotator "NA RC"]
[PlyCount "82"]
[EventDate "2024.11.18"]
[EventType "swiss"]
[EventCountry "ITA"]
[SourceTitle "playchess.com"]
[Source "ChessBase"]
[SourceQuality "1"]
[TimeControl "5400+30"]

1. e4 {[%emt 0:00:05]} c6 {[%emt 0:00:04]} 2. d4 {[%emt 0:00:07]} d5 {[%emt 0:00:04]} 3. Nc3 {[%emt 0:00:13]} dxe4 {[%emt 0:00:07]} 4. Nxe4 {[%emt 0:00:05]} Nd7 {[%emt 0:00:10]} 5. Bc4 {[%emt 0:00:29]} Ngf6 {[%emt 0:00:16]} 6. Nxf6+ {[%emt 0:00:41]} Nxf6 {[%emt 0:00:10]} 7. Nf3 {[%emt 0:00:17]} Bf5 {[%emt 0:00:09]} 8. O-O {[%emt 0:00:20]} e6 {[%emt 0:00:24]} 9. c3 {[%emt 0:01:16]} c5 {[%emt 0:00:45]} 10. Bg5 {[%emt 0:00:40]} Bg4 {[%emt 0:00:36]} 11. Bb5+ {[%emt 0:00:13]} Ke7 {[%emt 0:00:51]} 12. h3 {[%emt 0:02:10]} Bxf3 {[%emt 0:00:27]} 13. Qxf3 {[%emt 0:00:07]} Qb6 {[%emt 0:11:28]} 14. Ba4 {[%emt 0:01:23]} cxd4 {[%emt 0:00:42]} 15. Rad1 {[%emt 0:02:06]} Rd8 {[%emt 0:08:44]} 16. cxd4 {[%emt 0:01:20]} h6 {[%emt 0:00:45]} 17. Bf4 {[%emt 0:00:26]} Nd5 {[%emt 0:01:51]} 18. Rfe1 {[%emt 0:01:29]} Nxf4 {[%emt 0:07:47]} 19. Qxf4 {[%emt 0:00:40]} Qd6 {[%emt 0:00:26]} 20. Qe4 {[%emt 0:01:23]} Qd5 {[%emt 0:01:44]} 21. Qc2 {[%emt 0:00:50]} Kf6 {[%emt 0:04:02]} 22. Re5 {[%emt 0:03:08]} Qxa2 {[%emt 0:01:33]} 23. Rd3 {[%emt 0:01:12]} Bd6 {[%emt 0:04:28]} 24. Rb5 {[%emt 0:01:52]} Rd7 {[%emt 0:04:35]} 25. d5 {[%emt 0:06:42]} Rc7 {[%emt 0:04:49]} 26. Qd1 {[%emt 0:01:09]} Rhc8 {[%emt 0:01:33]} 27. Rc3 {[%emt 0:08:51]} Rxc3 {[%emt 0:01:41]} 28. bxc3 {[%emt 0:00:50]} Rxc3 {[%emt 0:00:50]} 29. dxe6 {[%emt 0:00:39]} Qxa4 {[%emt 0:01:00]} 30. Qb1 {[%emt 0:02:25]} Qxb5 {[%emt 0:00:42]} 31. Qxb5 {[%emt 0:00:17]} Rc1+ {[%emt 0:00:11]} 32. Qf1 {[%emt 0:00:02]} Bh2+ {[%emt 0:00:22]} 33. Kxh2 {[%emt 0:01:46]} Rxf1 {[%emt 0:00:09]} 34. e7 {[%emt 0:00:05]} Kxe7 {[%emt 0:00:11]} 35. Kg3 {[%emt 0:00:03]} a5 {[%emt 0:00:12]} 36. f4 {[%emt 0:00:05]} a4 {[%emt 0:00:07]} 37. Kh4 {[%emt 0:00:03]} a3 {[%emt 0:00:06]} 38. g4 {[%emt 0:00:04]} a2 {[%emt 0:00:22]} 39. Kh5 {[%emt 0:00:30]} a1=Q {[%emt 0:00:45]} 40. h4 {[%emt 0:00:18]} Rxf4 {[%emt 0:01:38]} 41. g5 {[%emt 0:00:06]} Qd1# {[%emt 0:00:26]} 0-1

[Event "FIDE WCCC Open-12 2024"]
[Site "Montesilvano"]
[Date "2024.11.26"]
[Round "11.67"]
[White "Williams, Henry"]
[Black "Macia Tell, Dario"]
[Result "0-1"]
[ECO "A21"]
[WhiteElo "1695"]
[BlackElo "1520"]
[Annotator "NA RC"]
[PlyCount "108"]
[EventDate "2024.11.18"]
[EventType "swiss"]
[EventCountry "ITA"]
[SourceTitle "playchess.com"]
[Source "ChessBase"]
[SourceQuality "1"]
[TimeControl "5400+30"]

1. c4 {[%emt 0:00:08]} e5 {[%emt 0:00:05]} 2. Nc3 {[%emt 0:01:50]} f5 {[%emt 0:00:28]} 3. d3 {[%emt 0:02:05]} Nf6 {[%emt 0:00:13]} 4. Bd2 {[%emt 0:02:54]} Nc6 {[%emt 0:00:26]} 5. g3 {[%emt 0:01:36]} Bc5 {[%emt 0:00:10]} 6. Bg2 {[%emt 0:00:47]} O-O {[%emt 0:00:11]} 7. a3 {[%emt 0:02:02]} a5 {[%emt 0:00:06]} 8. Qc2 {[%emt 0:02:28]} Nd4 {[%emt 0:03:56]} 9. Qd1 {[%emt 0:01:28]} c6 {[%emt 0:00:26]} 10. e3 {[%emt 0:00:29]} Ne6 {[%emt 0:00:04]} 11. Nge2 {[%emt 0:01:46]} d5 {[%emt 0:00:14]} 12. cxd5 {[%emt 0:01:33]} cxd5 {[%emt 0:01:10]} 13. Nc1 {[%emt 0:06:00]} d4 {[%emt 0:00:42]} 14. exd4 {[%emt 0:02:32]} Nxd4 {[%emt 0:00:25]} 15. N3e2 {[%emt 0:01:03]} a4 {[%emt 0:00:41]} 16. Nc3 {[%emt 0:04:23]} Qd7 {[%emt 0:02:53]} 17. O-O {[%emt 0:05:08]} Ra6 {[%emt 0:00:20]} 18. N1e2 {[%emt 0:02:43]} Nb3 {[%emt 0:00:51]} 19. Rb1 {[%emt 0:00:35]} Qxd3 {[%emt 0:00:09]} 20. Bg5 {[%emt 0:01:33]} Qxd1 {[%emt 0:03:18]} 21. Rbxd1 {[%emt 0:00:16]} h6 {[%emt 0:00:17]} 22. Bxf6 {[%emt 0:01:01]} Raxf6 {[%emt 0:01:38]} 23. Bd5+ {[%emt 0:00:27]} Kh8 {[%emt 0:00:09]} 24. Nxa4 {[%emt 0:00:55]} Nd4 {[%emt 0:02:20]} 25. Nxc5 {[%emt 0:03:14]} Nxe2+ {[%emt 0:00:05]} 26. Kh1 {[%emt 0:00:20]} Nd4 {[%emt 0:01:08]} 27. f4 {[%emt 0:02:25]} Nc6 {[%emt 0:00:14]} 28. b4 {[%emt 0:02:34]} b6 {[%emt 0:01:35]} 29. Nb3 {[%emt 0:01:06]} e4 {[%emt 0:00:24]} 30. Rc1 {[%emt 0:00:50]} Ne7 {[%emt 0:01:51]} 31. Bc4 {[%emt 0:00:49]} Be6 {[%emt 0:00:18]} 32. Nd4 {[%emt 0:02:42]} Bxc4 {[%emt 0:00:21]} 33. Rxc4 {[%emt 0:03:47]} Nd5 {[%emt 0:01:04]} 34. Rc6 {[%emt 0:01:25]} Rxc6 {[%emt 0:00:35]} 35. Nxc6 {[%emt 0:00:42]} Rc8 {[%emt 0:00:04]} 36. Nd4 {[%emt 0:02:22]} g6 {[%emt 0:00:21]} 37. Kg2 {[%emt 0:02:54]} Ne3+ {[%emt 0:00:08]} 38. Kf2 {[%emt 0:00:08]} Nxf1 {[%emt 0:00:05]} 39. Kxf1 {[%emt 0:00:03]} Rc3 {[%emt 0:00:10]} 40. Nb5 {[%emt 0:01:40]} Rc2 {[%emt 0:00:05]} 41. Nd4 {[%emt 0:00:37]} Rxh2 {[%emt 0:00:07]} 42. Kg1 {[%emt 0:00:31]} Rd2 {[%emt 0:00:08]} 43. Nb3 {[%emt 0:00:14]} Rd3 {[%emt 0:00:05]} 44. Nc1 {[%emt 0:00:30]} Rd1+ {[%emt 0:00:04]} 45. Kf2 {[%emt 0:00:03]} Rxc1 {[%emt 0:00:07]} 46. Ke3 {[%emt 0:00:02]} Rc3+ {[%emt 0:00:10]} 47. Kd4 {[%emt 0:00:03]} Rxa3 {[%emt 0:00:09]} 48. Ke5 {[%emt 0:00:07]} e3 {[%emt 0:00:07]} 49. Kd4 {[%emt 0:00:06]} e2 {[%emt 0:00:13]} 50. Kd5 {[%emt 0:00:07]} e1=Q {[%emt 0:00:06]} 51. Kc6 {[%emt 0:00:04]} Qe6+ {[%emt 0:00:08]} 52. Kb5 {[%emt 0:00:06]} Rc3 {[%emt 0:00:25]} 53. Ka4 {[%emt 0:00:13]} Qc6+ {[%emt 0:00:06]} 54. b5 {[%emt 0:00:26]} Qc4# {[%emt 0:00:06]} 0-1